[Event "*** Titled Tuesday 3|2 Blitz"]
[Site "Chess.com"]
[Date "2014.12.30"]
[Round "4"]
[White "FlySooHigh"]
[Black "IMRosen"]
[Result "1-0"]
[WhiteElo "2359"]
[BlackElo "2035"]
[TimeControl "180+2"]
[EndTime "11:50:14 PST"]
[Termination "FlySooHigh won on time"]

1. e4 {[%clk 0:03:00]} 1... c5 {[%clk 0:02:59.2]} 2. Nf3 {[%clk 0:03:00.1]} 2...
e6 {[%clk 0:03:00.8]} 3. c3 {[%clk 0:03:00.6]} 3... d5 {[%clk 0:03:01.4]} 4. e5
{[%clk 0:03:01.4]} 4... d4 {[%clk 0:03:02.1]} 5. Bd3 {[%clk 0:03:02]} 5... Nc6
{[%clk 0:03:02.3]} 6. Be4 {[%clk 0:03:02.9]} 6... Nge7 {[%clk 0:02:57]} 7. d3
{[%clk 0:03:03.3]} 7... Ng6 {[%clk 0:02:49.4]} 8. Bxc6+ {[%clk 0:03:03.6]} 8...
bxc6 {[%clk 0:02:50.7]} 9. c4 {[%clk 0:03:05.2]} 9... Qc7 {[%clk 0:02:43.1]} 10.
Qe2 {[%clk 0:03:05.5]} 10... Be7 {[%clk 0:02:44.2]} 11. h4 {[%clk 0:03:03.1]}
11... f6 {[%clk 0:02:33.5]} 12. h5 {[%clk 0:02:58.7]} 12... Nxe5 {[%clk
0:02:31.4]} 13. Nxe5 {[%clk 0:02:59.4]} 13... fxe5 {[%clk 0:02:29.1]} 14. Nd2
{[%clk 0:02:57.2]} 14... O-O {[%clk 0:02:26.9]} 15. Ne4 {[%clk 0:02:56.8]} 15...
Bd7 {[%clk 0:02:19.9]} 16. Kf1 {[%clk 0:02:42.5]} 16... a5 {[%clk 0:02:19.5]}
17. Bd2 {[%clk 0:02:22.2]} 17... a4 {[%clk 0:02:20]} 18. Re1 {[%clk 0:02:21.1]}
18... Rab8 {[%clk 0:02:20]} 19. Bc1 {[%clk 0:02:21.7]} 19... Rf7 {[%clk
0:02:06.5]} 20. Kg1 {[%clk 0:02:22.2]} 20... Kh8 {[%clk 0:01:53.2]} 21. Rh3
{[%clk 0:02:22.6]} 21... Rf5 {[%clk 0:01:48.4]} 22. Ng3 {[%clk 0:02:09.9]} 22...
Rf7 {[%clk 0:01:47]} 23. Ne4 {[%clk 0:02:07.4]} 23... Rf5 {[%clk 0:01:47.6]} 24.
Kh2 {[%clk 0:02:03.6]} 24... Be8 {[%clk 0:01:48.3]} 25. Rh1 {[%clk 0:02:03.7]}
25... Rf8 {[%clk 0:01:42.2]} 26. Kg1 {[%clk 0:02:03.9]} 26... Bf6 {[%clk
0:01:42.7]} 27. Rf3 {[%clk 0:01:59.8]} 27... Qe7 {[%clk 0:01:40.1]} 28. Rg3
{[%clk 0:01:50]} 28... h6 {[%clk 0:01:35.2]} 29. Qg4 {[%clk 0:01:35.5]} 29...
Bf7 {[%clk 0:01:25.3]} 30. Qd1 {[%clk 0:01:32]} 30... Ra8 {[%clk 0:01:20.5]} 31.
Rf3 {[%clk 0:01:21.7]} 31... Bg8 {[%clk 0:01:21.5]} 32. Qe2 {[%clk 0:01:14.5]}
32... Bh7 {[%clk 0:01:21.8]} 33. Rhh3 {[%clk 0:01:09.2]} 33... Rab8 {[%clk
0:01:17.2]} 34. g4 {[%clk 0:01:02.2]} 34... Bxe4 {[%clk 0:00:47.5]} 35. Qxe4
{[%clk 0:01:01.6]} 35... Bg5 {[%clk 0:00:49.2]} 36. Bxg5 {[%clk 0:00:50]} 36...
Qxg5 {[%clk 0:00:51.1]} 37. b3 {[%clk 0:00:50.3]} 37... axb3 {[%clk 0:00:40]}
38. axb3 {[%clk 0:00:50.4]} 38... Rf6 {[%clk 0:00:25.5]} 39. Rxf6 {[%clk
0:00:33.6]} 39... gxf6 {[%clk 0:00:24.5]} 40. Rg3 {[%clk 0:00:34.9]} 40... Rxb3
{[%clk 0:00:18.5]} 41. Qxc6 {[%clk 0:00:32.6]} 41... Rb1+ {[%clk 0:00:17.7]} 42.
Kg2 {[%clk 0:00:31.6]} 42... Qg8 {[%clk 0:00:15.8]} 43. Qxc5 {[%clk 0:00:29.2]}
43... Qa8+ {[%clk 0:00:16.4]} 44. Rf3 {[%clk 0:00:26.4]} 44... Rb7 {[%clk
0:00:08.7]} 45. Qc6 {[%clk 0:00:21.7]} 45... Qa7 {[%clk 0:00:03.3]} 46. Qxe6
{[%clk 0:00:22.2]} 46... Rg7 {[%clk 0:00:04.5]} 47. Qxf6 {[%clk 0:00:21.8]}
47... Qb7 {[%clk 0:00:05.4]} 48. Qxh6+ {[%clk 0:00:17.8]} 48... Kg8 {[%clk
0:00:06.4]} 49. Qe6+ {[%clk 0:00:18.3]} 49... Kh7 {[%clk 0:00:07.8]} 50. Kg3
{[%clk 0:00:15.4]} 50... Qc7 {[%clk 0:00:05.2]} 51. Qf5+ {[%clk 0:00:14.1]}
51... Kg8 {[%clk 0:00:04.8]} 52. Qe4 {[%clk 0:00:14.5]} 52... Qd7 {[%clk
0:00:02.8]} 53. Rf5 {[%clk 0:00:14.7]} 1-0

[Event "*** Titled Tuesday 3|2 Blitz"]
[Site "Chess.com"]
[Date "2014.12.30"]
[Round "4"]
[White "bugsbunny444"]
[Black "MikePerelshteyn"]
[Result "1/2-1/2"]
[WhiteElo "2225"]
[BlackElo "2009"]
[TimeControl "180+2"]
[EndTime "11:50:17 PST"]
[Termination "Game drawn by repetition"]

1. Nf3 {[%clk 0:03:00]} 1... c6 {[%clk 0:02:59]} 2. c4 {[%clk 0:03:01.3]} 2...
d6 {[%clk 0:03:00.1]} 3. g3 {[%clk 0:03:02.7]} 3... Nf6 {[%clk 0:03:01.3]} 4.
Bg2 {[%clk 0:03:04]} 4... g6 {[%clk 0:03:02.7]} 5. b4 {[%clk 0:03:05.4]} 5...
Bg7 {[%clk 0:03:02.4]} 6. Bb2 {[%clk 0:03:06.9]} 6... O-O {[%clk 0:03:03.4]} 7.
O-O {[%clk 0:03:08.6]} 7... e5 {[%clk 0:03:02.1]} 8. d3 {[%clk 0:03:10]} 8... a6
{[%clk 0:03:01.3]} 9. Nbd2 {[%clk 0:03:11.2]} 9... Re8 {[%clk 0:03:01.9]} 10.
Qc2 {[%clk 0:03:12.5]} 10... Bf5 {[%clk 0:03:00.2]} 11. c5 {[%clk 0:02:41.3]}
11... dxc5 {[%clk 0:02:49.5]} 12. bxc5 {[%clk 0:02:38.9]} 12... Nbd7 {[%clk
0:02:48.4]} 13. e4 {[%clk 0:01:56.4]} 13... Bg4 {[%clk 0:02:47.7]} 14. h3 {[%clk
0:01:53.7]} 14... Bxf3 {[%clk 0:02:47.9]} 15. Nxf3 {[%clk 0:01:55.1]} 15... Qa5
{[%clk 0:02:35.9]} 16. Rfc1 {[%clk 0:01:31.5]} 16... h6 {[%clk 0:02:30.7]} 17.
a4 {[%clk 0:01:24.7]} 17... Nh7 {[%clk 0:02:29.1]} 18. d4 {[%clk 0:01:13.9]}
18... exd4 {[%clk 0:02:27.5]} 19. Bxd4 {[%clk 0:01:15.3]} 19... Bxd4 {[%clk
0:02:22.9]} 20. Nxd4 {[%clk 0:01:17.2]} 20... Nhf8 {[%clk 0:02:09.6]} 21. Rab1
{[%clk 0:01:17.9]} 21... Qc7 {[%clk 0:02:07.7]} 22. f4 {[%clk 0:01:01.3]} 22...
Ne6 {[%clk 0:01:47.8]} 23. Nxe6 {[%clk 0:00:55.4]} 23... Rxe6 {[%clk 0:01:47.4]}
24. e5 {[%clk 0:00:52.7]} 24... Rb8 {[%clk 0:01:26]} 25. Rd1 {[%clk 0:00:53.6]}
25... Re7 {[%clk 0:01:19]} 26. Rd6 {[%clk 0:00:49.2]} 26... Qa5 {[%clk
0:01:15.7]} 27. Rc1 {[%clk 0:00:35.9]} 27... Nf8 {[%clk 0:01:10.6]} 28. Kh2
{[%clk 0:00:31.4]} 28... Rbe8 {[%clk 0:01:07.2]} 29. Rb1 {[%clk 0:00:21.2]}
29... Ne6 {[%clk 0:00:54.7]} 30. Rc1 {[%clk 0:00:22.7]} 30... Nf8 {[%clk
0:00:49.8]} 31. h4 {[%clk 0:00:23.6]} 31... h5 {[%clk 0:00:49.8]} 32. Rd4 {[%clk
0:00:21.6]} 32... Ne6 {[%clk 0:00:46.7]} 33. Rd6 {[%clk 0:00:23]} 33... Nf8
{[%clk 0:00:47.5]} 34. Qc3 {[%clk 0:00:20.3]} 34... Qc7 {[%clk 0:00:32.1]} 35.
Qb4 {[%clk 0:00:16.1]} 35... Ne6 {[%clk 0:00:28.1]} 36. a5 {[%clk 0:00:16.4]}
36... Ng7 {[%clk 0:00:25.8]} 37. Bh3 {[%clk 0:00:17.1]} 37... Ne6 {[%clk
0:00:21]} 38. Rcd1 {[%clk 0:00:18.5]} 38... Kh7 {[%clk 0:00:16]} 39. Bxe6 {[%clk
0:00:15.9]} 39... fxe6 {[%clk 0:00:14.9]} 40. R1d4 {[%clk 0:00:14.7]} 40... Kg7
{[%clk 0:00:15.4]} 41. Qd2 {[%clk 0:00:15.7]} 41... Kf7 {[%clk 0:00:14.3]} 42.
Rd7 {[%clk 0:00:16.7]} 42... Qc8 {[%clk 0:00:14.1]} 43. R4d6 {[%clk 0:00:17.1]}
43... Rxd7 {[%clk 0:00:14.4]} 44. Rxd7+ {[%clk 0:00:18.6]} 44... Re7 {[%clk
0:00:15.1]} 45. Rd6 {[%clk 0:00:11]} 45... Qc7 {[%clk 0:00:15.6]} 46. f5 {[%clk
0:00:10.7]} 46... exf5 {[%clk 0:00:12.9]} 47. Qg5 {[%clk 0:00:11.7]} 47... Re6
{[%clk 0:00:11.3]} 48. Rxe6 {[%clk 0:00:09.8]} 48... Kxe6 {[%clk 0:00:12.6]} 49.
Qf6+ {[%clk 0:00:09.9]} 49... Kd5 {[%clk 0:00:13.2]} 50. e6 {[%clk 0:00:09]}
50... Qxa5 {[%clk 0:00:08.7]} 51. e7 {[%clk 0:00:07.6]} 51... Qd2+ {[%clk
0:00:09.5]} 52. Kg1 {[%clk 0:00:08.7]} 52... Qe1+ {[%clk 0:00:10.1]} 53. Kg2
{[%clk 0:00:10.1]} 53... Qe2+ {[%clk 0:00:11.2]} 54. Kg1 {[%clk 0:00:11.1]}
54... Kxc5 {[%clk 0:00:10.3]} 55. Qf7 {[%clk 0:00:09.2]} 55... Qe1+ {[%clk
0:00:10.2]} 56. Kg2 {[%clk 0:00:10.6]} 56... Qe2+ {[%clk 0:00:11.4]} 57. Kg1
{[%clk 0:00:12.2]} 57... Qe1+ {[%clk 0:00:12.6]} 58. Kg2 {[%clk 0:00:13.8]}
58... Qe2+ {[%clk 0:00:13.6]} 59. Kg1 {[%clk 0:00:14.2]} 59... Qe1+ {[%clk
0:00:14.8]} 1/2-1/2

[Event "*** Titled Tuesday 3|2 Blitz"]
[Site "Chess.com"]
[Date "2014.12.30"]
[Round "4"]
[White "pKiLz5Rn9b"]
[Black "LuckyTiger"]
[Result "0-1"]
[WhiteElo "2164"]
[BlackElo "2466"]
[TimeControl "180+2"]
[EndTime "11:51:05 PST"]
[Termination "LuckyTiger won by checkmate"]

1. e4 {[%clk 0:03:00]} 1... e6 {[%clk 0:02:59.4]} 2. d4 {[%clk 0:03:00.2]} 2...
d5 {[%clk 0:03:01]} 3. Nd2 {[%clk 0:03:01.5]} 3... Nc6 {[%clk 0:03:01.5]} 4.
Ngf3 {[%clk 0:03:01.9]} 4... Nf6 {[%clk 0:03:02.4]} 5. Bd3 {[%clk 0:03:00.9]}
5... Nb4 {[%clk 0:02:58.4]} 6. e5 {[%clk 0:02:50.1]} 6... Nxd3+ {[%clk 0:02:59]}
7. cxd3 {[%clk 0:02:50.9]} 7... Nd7 {[%clk 0:03:00.9]} 8. O-O {[%clk 0:02:50.5]}
8... a5 {[%clk 0:02:52.5]} 9. Re1 {[%clk 0:02:49.1]} 9... b6 {[%clk 0:02:49.5]}
10. Nf1 {[%clk 0:02:47.3]} 10... Be7 {[%clk 0:02:50.8]} 11. Ng3 {[%clk
0:02:46.8]} 11... h5 {[%clk 0:02:48.5]} 12. h3 {[%clk 0:02:40.2]} 12... Ba6
{[%clk 0:02:37.8]} 13. Be3 {[%clk 0:02:40.6]} 13... c5 {[%clk 0:02:24.4]} 14.
Qd2 {[%clk 0:02:31.1]} 14... Rc8 {[%clk 0:01:49.7]} 15. a3 {[%clk 0:02:26.8]}
15... cxd4 {[%clk 0:01:42.3]} 16. Bxd4 {[%clk 0:02:27.5]} 16... Nc5 {[%clk
0:01:43.4]} 17. Bxc5 {[%clk 0:02:28.6]} 17... bxc5 {[%clk 0:01:42.5]} 18. Rac1
{[%clk 0:02:27.3]} 18... Rb8 {[%clk 0:01:41.8]} 19. d4 {[%clk 0:02:23.3]} 19...
c4 {[%clk 0:01:33.3]} 20. Ne2 {[%clk 0:02:20.6]} 20... g5 {[%clk 0:01:16.1]} 21.
g4 {[%clk 0:02:06.8]} 21... Qb6 {[%clk 0:01:07]} 22. Rc2 {[%clk 0:02:05]} 22...
hxg4 {[%clk 0:01:06.5]} 23. hxg4 {[%clk 0:02:05.9]} 23... Qb3 {[%clk 0:01:06.7]}
24. Kg2 {[%clk 0:02:02.1]} 24... Qd3 {[%clk 0:01:01.8]} 25. Ng3 {[%clk
0:01:56.2]} 25... Qxd2 {[%clk 0:00:48.5]} 26. Nxd2 {[%clk 0:01:51.9]} 26... Bb5
{[%clk 0:00:49.5]} 27. Nb1 {[%clk 0:01:50.5]} 27... Ba4 {[%clk 0:00:50]} 28. Rd2
{[%clk 0:01:52]} 28... Rb3 {[%clk 0:00:43.8]} 29. Nc3 {[%clk 0:01:51.4]} 29...
Bc6 {[%clk 0:00:45.4]} 30. Nge2 {[%clk 0:01:50.4]} 30... Kd7 {[%clk 0:00:45.3]}
31. Nc1 {[%clk 0:01:51.5]} 31... Rbb8 {[%clk 0:00:42.7]} 32. Rh1 {[%clk
0:01:52]} 32... Rxh1 {[%clk 0:00:42.5]} 33. Kxh1 {[%clk 0:01:52.9]} 33... f6
{[%clk 0:00:43.7]} 34. exf6 {[%clk 0:01:44.7]} 34... Bxf6 {[%clk 0:00:45.6]} 35.
Kg1 {[%clk 0:01:43.3]} 35... Kd6 {[%clk 0:00:46.4]} 36. N1e2 {[%clk 0:01:40.6]}
36... Be8 {[%clk 0:00:47.2]} 37. Ng3 {[%clk 0:01:40.5]} 37... Bg6 {[%clk
0:00:48.2]} 38. Kg2 {[%clk 0:01:36.2]} 38... Bd3 {[%clk 0:00:48.1]} 39. Nge2
{[%clk 0:01:25.1]} 39... e5 {[%clk 0:00:49.5]} 40. dxe5+ {[%clk 0:01:24.8]}
40... Bxe5 {[%clk 0:00:51.4]} 41. Nd1 {[%clk 0:01:22.1]} 41... Rf8 {[%clk
0:00:46.1]} 42. Ne3 {[%clk 0:01:20.5]} 42... Be4+ {[%clk 0:00:46.7]} 43. Kg1
{[%clk 0:01:17.7]} 43... Rh8 {[%clk 0:00:46]} 44. Ng3 {[%clk 0:01:14]} 44... Bd3
{[%clk 0:00:30.6]} 45. Ngf5+ {[%clk 0:01:09.9]} 45... Kc5 {[%clk 0:00:31.7]} 46.
b4+ {[%clk 0:00:58]} 46... axb4 {[%clk 0:00:30.9]} 47. axb4+ {[%clk 0:00:59.4]}
47... Kxb4 {[%clk 0:00:32.2]} 48. Nxd5+ {[%clk 0:01:00.6]} 48... Kb3 {[%clk
0:00:33.7]} 49. Nde3 {[%clk 0:00:33.4]} 49... Be4 {[%clk 0:00:32.8]} 50. Kf1
{[%clk 0:00:31.3]} 50... Bd3+ {[%clk 0:00:27.7]} 51. Kg2 {[%clk 0:00:30.2]}
51... Rh2+ {[%clk 0:00:19.5]} 52. Kf3 {[%clk 0:00:31.2]} 52... Rh1 {[%clk
0:00:18]} 53. Ng3 {[%clk 0:00:26.1]} 53... Ra1 {[%clk 0:00:16.2]} 54. Ne4 {[%clk
0:00:26.1]} 54... Bd4 {[%clk 0:00:13]} 55. Nf5 {[%clk 0:00:25.5]} 55... Bxe4+
{[%clk 0:00:08]} 56. Kxe4 {[%clk 0:00:27]} 56... Bc5 {[%clk 0:00:09.4]} 57. Rd5
{[%clk 0:00:22]} 57... Re1+ {[%clk 0:00:09.8]} 58. Kf3 {[%clk 0:00:21.9]} 58...
Kb4 {[%clk 0:00:11]} 59. Ng3 {[%clk 0:00:22.8]} 59... c3 {[%clk 0:00:11.5]} 60.
Ne4 {[%clk 0:00:23.4]} 60... Rxe4 {[%clk 0:00:11.1]} 61. Kxe4 {[%clk 0:00:20.7]}
61... c2 {[%clk 0:00:12.6]} 62. Rxg5 {[%clk 0:00:20.9]} 62... c1=Q {[%clk
0:00:13.7]} 63. Kf5 {[%clk 0:00:22.4]} 63... Bxf2 {[%clk 0:00:13.4]} 64. Kg6
{[%clk 0:00:22.9]} 64... Qc2+ {[%clk 0:00:14.7]} 65. Rf5 {[%clk 0:00:24]} 65...
Bd4 {[%clk 0:00:15.7]} 66. Kf7 {[%clk 0:00:25.2]} 66... Qc7+ {[%clk 0:00:16.6]}
67. Kg6 {[%clk 0:00:25.3]} 67... Kc4 {[%clk 0:00:17.8]} 68. g5 {[%clk
0:00:25.9]} 68... Qg7+ {[%clk 0:00:19.3]} 69. Kh5 {[%clk 0:00:27.3]} 69... Kd3
{[%clk 0:00:20.8]} 70. g6 {[%clk 0:00:28.2]} 70... Ke4 {[%clk 0:00:21.9]} 71.
Rf7 {[%clk 0:00:29.7]} 71... Qe5+ {[%clk 0:00:21.7]} 72. Kh6 {[%clk 0:00:31.1]}
72... Qh2+ {[%clk 0:00:22.8]} 73. Kg5 {[%clk 0:00:31.4]} 73... Qg3+ {[%clk
0:00:24.3]} 74. Kh6 {[%clk 0:00:32.6]} 74... Qh4# {[%clk 0:00:25.4]} 0-1

[Event "*** Titled Tuesday 3|2 Blitz"]
[Site "Chess.com"]
[Date "2014.12.30"]
[Round "4"]
[White "playerzr"]
[Black "Carolina-moon"]
[Result "1/2-1/2"]
[WhiteElo "1854"]
[BlackElo "1894"]
[TimeControl "180+2"]
[EndTime "11:51:14 PST"]
[Termination "Game drawn by agreement"]

1. d4 {[%clk 0:03:00]} 1... f5 {[%clk 0:02:58.5]} 2. c3 {[%clk 0:02:58.7]} 2...
Nf6 {[%clk 0:02:53.1]} 3. g3 {[%clk 0:02:58.4]} 3... g6 {[%clk 0:02:52.1]} 4.
Bg2 {[%clk 0:02:59.4]} 4... Bg7 {[%clk 0:02:53.6]} 5. Nh3 {[%clk 0:02:59]} 5...
c6 {[%clk 0:02:51.4]} 6. Nd2 {[%clk 0:02:55.2]} 6... O-O {[%clk 0:02:51.9]} 7.
e4 {[%clk 0:02:52.3]} 7... fxe4 {[%clk 0:02:52.1]} 8. Nxe4 {[%clk 0:02:52.8]}
8... d5 {[%clk 0:02:44.2]} 9. Nxf6+ {[%clk 0:02:49.4]} 9... exf6 {[%clk
0:02:44.6]} 10. O-O {[%clk 0:02:50.2]} 10... Na6 {[%clk 0:02:41.7]} 11. Re1
{[%clk 0:02:50.7]} 11... Nc7 {[%clk 0:02:42.4]} 12. b3 {[%clk 0:02:49.5]} 12...
Bf5 {[%clk 0:02:39.5]} 13. Ba3 {[%clk 0:02:49.8]} 13... Re8 {[%clk 0:02:39.4]}
14. Qd2 {[%clk 0:02:50.2]} 14... Qd7 {[%clk 0:02:38.2]} 15. Nf4 {[%clk 0:02:49]}
15... Bh6 {[%clk 0:02:37.9]} 16. Re2 {[%clk 0:02:43.9]} 16... Rxe2 {[%clk
0:02:37.1]} 17. Qxe2 {[%clk 0:02:44.3]} 17... Bxf4 {[%clk 0:02:33.9]} 18. gxf4
{[%clk 0:02:44.9]} 18... Re8 {[%clk 0:02:33.7]} 19. Qd2 {[%clk 0:02:44.9]} 19...
Qe6 {[%clk 0:02:29.5]} 20. Bf3 {[%clk 0:02:39.5]} 20... Be4 {[%clk 0:02:23.3]}
21. Re1 {[%clk 0:02:34.4]} 21... Qh3 {[%clk 0:02:20.3]} 22. Bxe4 {[%clk
0:02:25.2]} 22... dxe4 {[%clk 0:02:20.7]} 23. c4 {[%clk 0:02:23.6]} 23... Qg4+
{[%clk 0:01:47.1]} 24. Kh1 {[%clk 0:02:23.1]} 24... Ne6 {[%clk 0:01:46.8]} 25.
Bd6 {[%clk 0:02:15.6]} 25... Rd8 {[%clk 0:01:36.4]} 26. c5 {[%clk 0:02:15.5]}
26... f5 {[%clk 0:01:31.7]} 27. Re3 {[%clk 0:02:11.2]} 27... Qh4 {[%clk
0:01:10.6]} 28. d5 {[%clk 0:02:07.5]} 28... Nxf4 {[%clk 0:00:51.8]} 29. dxc6
{[%clk 0:01:58.9]} 29... bxc6 {[%clk 0:00:51.8]} 30. Rg3 {[%clk 0:01:51.5]}
30... Nd5 {[%clk 0:00:49.3]} 31. Qa5 {[%clk 0:01:49.8]} 31... f4 {[%clk
0:00:49]} 32. Rg2 {[%clk 0:01:41.6]} 32... e3 {[%clk 0:00:41.9]} 33. fxe3 {[%clk
0:01:36.3]} 33... Nxe3 {[%clk 0:00:28.4]} 34. Rg1 {[%clk 0:01:25.6]} 34... Re8
{[%clk 0:00:21.4]} 35. Qb4 {[%clk 0:01:14.5]} 35... Ng4 {[%clk 0:00:17.3]} 36.
Qc4+ {[%clk 0:01:03.3]} 36... Kg7 {[%clk 0:00:15.1]} 37. Qxf4 {[%clk 0:00:57.5]}
37... Nf2+ {[%clk 0:00:14.9]} 38. Kg2 {[%clk 0:00:57.4]} 38... Qxf4 {[%clk
0:00:14.3]} 39. Bxf4 {[%clk 0:00:57.7]} 39... Nd3 {[%clk 0:00:15.1]} 40. Bd6
{[%clk 0:00:57.2]} 40... Re2+ {[%clk 0:00:15.6]} 41. Kf3 {[%clk 0:00:55.6]}
41... Rxa2 {[%clk 0:00:16.7]} 42. Rd1 {[%clk 0:00:53.2]} 42... Nb4 {[%clk
0:00:17]} 43. Re1 {[%clk 0:00:53.1]} 43... Nd5 {[%clk 0:00:17.2]} 44. Re8 {[%clk
0:00:52]} 44... h5 {[%clk 0:00:17.4]} 45. Rc8 {[%clk 0:00:49.8]} 45... Rb2
{[%clk 0:00:13.5]} 46. Rxc6 {[%clk 0:00:48.9]} 46... Rxb3+ {[%clk 0:00:13.8]}
47. Ke4 {[%clk 0:00:49.6]} 47... Nf6+ {[%clk 0:00:13.9]} 48. Kd4 {[%clk
0:00:48.7]} 48... Rb4+ {[%clk 0:00:13.1]} 49. Kc3 {[%clk 0:00:49.1]} 49... Ra4
{[%clk 0:00:12.4]} 50. Be5 {[%clk 0:00:49.4]} 50... Ra3+ {[%clk 0:00:07.2]} 51.
Kb2 {[%clk 0:00:49.5]} 51... Rf3 {[%clk 0:00:07.3]} 52. Rc7+ {[%clk 0:00:40]}
52... Kh6 {[%clk 0:00:08.3]} 53. Rxa7 {[%clk 0:00:38.5]} 53... Nd5 {[%clk
0:00:06.3]} 54. c6 {[%clk 0:00:38.8]} 54... Rf5 {[%clk 0:00:04.6]} 55. c7 {[%clk
0:00:36.1]} 55... Nxc7 {[%clk 0:00:05.4]} 56. Bxc7 {[%clk 0:00:36.1]} 56... Rb5+
{[%clk 0:00:07]} 57. Kc3 {[%clk 0:00:36.3]} 57... h4 {[%clk 0:00:08.3]} 58. Kc4
{[%clk 0:00:36.9]} 58... Rb2 {[%clk 0:00:09.5]} 59. Bf4+ {[%clk 0:00:36.1]}
59... Kh5 {[%clk 0:00:10.1]} 60. Kd4 {[%clk 0:00:35.2]} 60... Rb4+ {[%clk
0:00:09.8]} 61. Ke3 {[%clk 0:00:35.9]} 61... Kg4 {[%clk 0:00:11.1]} 62. Bc7
{[%clk 0:00:35.3]} 62... g5 {[%clk 0:00:12.1]} 63. Ra5 {[%clk 0:00:34.3]} 63...
Rb3+ {[%clk 0:00:11.9]} 64. Kd2 {[%clk 0:00:34]} 64... Rb2+ {[%clk 0:00:12.4]}
65. Kc3 {[%clk 0:00:35]} 65... Rb1 {[%clk 0:00:12.8]} 66. Bd8 {[%clk 0:00:35.5]}
66... Rd1 {[%clk 0:00:13.8]} 67. Bxg5 {[%clk 0:00:34.8]} 67... Kh3 {[%clk
0:00:12.5]} 68. Ra4 {[%clk 0:00:34.5]} 68... Kxh2 {[%clk 0:00:09.2]} 69. Rxh4+
{[%clk 0:00:34.3]} 69... Kg3 {[%clk 0:00:10]} 70. Re4 {[%clk 0:00:34.9]} 70...
Rd7 {[%clk 0:00:09.1]} 71. Bd2 {[%clk 0:00:34.2]} 71... Kf3 {[%clk 0:00:09.1]}
72. Rf4+ {[%clk 0:00:34.9]} 72... Ke2 {[%clk 0:00:09.5]} 73. Re4+ {[%clk
0:00:35.9]} 73... Kf3 {[%clk 0:00:10]} 74. Re8 {[%clk 0:00:36.5]} 74... Rc7+
{[%clk 0:00:09.3]} 75. Kd3 {[%clk 0:00:37.1]} 75... Rd7+ {[%clk 0:00:10.6]} 76.
Kc3 {[%clk 0:00:37.2]} 76... Rc7+ {[%clk 0:00:12.1]} 1/2-1/2

[Event "*** Titled Tuesday 3|2 Blitz"]
[Site "Chess.com"]
[Date "2014.12.30"]
[Round "5"]
[White "AlexanderL"]
[Black "Tilicheev_Viacheslav"]
[Result "0-1"]
[WhiteElo "2425"]
[BlackElo "2393"]
[TimeControl "180+2"]
[EndTime "12:00:17 PST"]
[Termination "Tilicheev_Viacheslav won by resignation"]

1. d4 {[%clk 0:03:00]} 1... d5 {[%clk 0:02:58.4]} 2. c4 {[%clk 0:02:59.2]} 2...
e5 {[%clk 0:02:59.1]} 3. dxe5 {[%clk 0:03:00]} 3... d4 {[%clk 0:03:01]} 4. Nf3
{[%clk 0:03:01.4]} 4... Nc6 {[%clk 0:03:02.6]} 5. a3 {[%clk 0:03:02.4]} 5...
Nge7 {[%clk 0:03:02.3]} 6. Nbd2 {[%clk 0:03:03.7]} 6... Nf5 {[%clk 0:02:50.4]}
7. Nb3 {[%clk 0:03:02.9]} 7... Be6 {[%clk 0:02:46.3]} 8. e4 {[%clk 0:02:58.4]}
8... dxe3 {[%clk 0:02:46.1]} 9. Qxd8+ {[%clk 0:02:58.9]} 9... Rxd8 {[%clk
0:02:47.8]} 10. fxe3 {[%clk 0:02:58.7]} 10... h5 {[%clk 0:02:27.4]} 11. e4
{[%clk 0:02:57.1]} 11... Nfd4 {[%clk 0:02:24]} 12. Nbxd4 {[%clk 0:02:15.8]}
12... Nxd4 {[%clk 0:02:25.9]} 13. Kf2 {[%clk 0:02:17.1]} 13... Nb3 {[%clk
0:02:13.5]} 14. Rb1 {[%clk 0:02:17.9]} 14... Rd1 {[%clk 0:02:13.4]} 15. c5
{[%clk 0:02:10.4]} 15... c6 {[%clk 0:02:13.6]} 0-1

[Event "*** Titled Tuesday 3|2 Blitz"]
[Site "Chess.com"]
[Date "2014.12.30"]
[Round "5"]
[White "exoticprincess"]
[Black "162a54f5d"]
[Result "1-0"]
[WhiteElo "2652"]
[BlackElo "2314"]
[TimeControl "180+2"]
[EndTime "12:01:21 PST"]
[Termination "exoticprincess won by resignation"]

1. b3 {[%clk 0:03:00]} 1... Nc6 {[%clk 0:02:54.7]} 2. Bb2 {[%clk 0:03:01.9]}
2... d5 {[%clk 0:02:52.9]} 3. e3 {[%clk 0:03:03.8]} 3... a6 {[%clk 0:02:53.6]}
4. f4 {[%clk 0:03:03.1]} 4... Nf6 {[%clk 0:02:54.2]} 5. Nf3 {[%clk 0:03:04.3]}
5... e6 {[%clk 0:02:53.9]} 6. a3 {[%clk 0:03:03]} 6... Be7 {[%clk 0:02:54.3]} 7.
Bd3 {[%clk 0:03:04.5]} 7... O-O {[%clk 0:02:52.6]} 8. O-O {[%clk 0:03:06.2]}
8... Ne4 {[%clk 0:02:50.8]} 9. Nc3 {[%clk 0:03:05]} 9... f5 {[%clk 0:02:51.1]}
10. Ne2 {[%clk 0:03:05.6]} 10... Bf6 {[%clk 0:02:51.9]} 11. Qc1 {[%clk
0:02:57.5]} 11... Qe7 {[%clk 0:02:45.7]} 12. b4 {[%clk 0:02:56.7]} 12... a5
{[%clk 0:02:40.1]} 13. b5 {[%clk 0:02:57.2]} 13... Nd8 {[%clk 0:02:41.2]} 14. c4
{[%clk 0:02:53.1]} 14... c5 {[%clk 0:02:25.4]} 15. bxc6 {[%clk 0:02:47.9]} 15...
bxc6 {[%clk 0:02:24.5]} 16. Bxf6 {[%clk 0:02:44.2]} 16... gxf6 {[%clk
0:02:22.1]} 17. cxd5 {[%clk 0:02:42.2]} 17... cxd5 {[%clk 0:02:19.9]} 18. Nfd4
{[%clk 0:02:43.3]} 18... Ba6 {[%clk 0:02:06.8]} 19. Bxa6 {[%clk 0:02:41.8]}
19... Rxa6 {[%clk 0:02:08.7]} 20. d3 {[%clk 0:02:43.4]} 20... Nc5 {[%clk
0:02:03.2]} 21. Qc2 {[%clk 0:02:42.9]} 21... Ndb7 {[%clk 0:01:51]} 22. Rab1
{[%clk 0:02:44]} 22... a4 {[%clk 0:01:48.3]} 23. Rb5 {[%clk 0:02:43.4]} 23...
Ra5 {[%clk 0:01:41.6]} 24. Nc6 {[%clk 0:02:42.1]} 24... Qd7 {[%clk 0:01:42.6]}
25. Rxa5 {[%clk 0:02:37]} 25... Nxa5 {[%clk 0:01:41.7]} 26. Nxa5 {[%clk
0:02:37]} 26... Qb5 {[%clk 0:01:42.3]} 27. Nc6 {[%clk 0:02:28.8]} 1-0